bitfinex/quotes_ETHUSD_20230109
["timestamp","ask_amount","ask_price","bid_price","bid_amount"]
[1673298066638,1.6939345,1321.2,1321.1,56.55357756]
[1673298066834,1.6939345,1321.2,1321.1,64.12301756]
[1673298067041,1.6939345,1321.2,1321.1,41.12301756]
[1673298067256,4.04844373,1321.3,1321.1,81.36829046]
[1673298067537,1.6939345,1321.3,1321.1,79.4901182]
[1673298067769,11.93804373,1321.4,1321.1,46.05264752]
[1673298067972,11.93804373,1321.4,1321.2,12.0]
[1673298068184,1.6939345,1321.3,1321.2,34.7114374]
[1673298068430,1.6939345,1321.3,1321.2,49.7114374]
[1673298069009,3.95244373,1321.3,1321.2,37.7114374]
[1673298069219,1.6939345,1321.3,1321.2,37.7114374]
[1673298071581,2.82279883,1321.3,1321.2,37.7114374]
[1673298071800,1.6939345,1321.3,1321.2,37.7114374]
[1673298073056,1.6939345,1321.3,1321.2,58.7114374]
[1673298073212,3.95244373,1321.3,1321.2,58.7114374]
[1673298073420,3.95244373,1321.3,1321.2,40.7114374]
[1673298073677,3.95244373,1321.3,1321.2,47.7114374]
[1673298074050,1.6939345,1321.3,1321.2,47.7114374]
[1673298074467,3.95244373,1321.3,1321.2,47.7114374]
[1673298075959,1.6939345,1321.3,1321.2,47.7114374]
[1673298076783,3.95244373,1321.3,1321.2,47.7114374]
[1673298077205,1.6939345,1321.3,1321.2,47.7114374]
[1673298077655,3.95244373,1321.3,1321.2,47.7114374]
[1673298079559,3.95244373,1321.3,1321.2,38.7114374]
[1673298079731,3.95244373,1321.3,1321.2,40.7114374]
[1673298080395,3.95244373,1321.3,1321.2,38.7114374]
[1673298080939,5.06871534,1321.3,1321.2,23.0048274]
[1673298081157,4.04774232,1321.3,1321.2,23.0048274]
[1673298081302,3.63750923,1321.3,1321.2,23.0048274]
[1673298081723,5.33087098,1321.3,1321.2,23.0048274]
[1673298081988,3.73350923,1321.3,1321.2,23.0048274]
[1673298082143,3.63750923,1321.3,1321.2,23.0048274]
[1673298083564,3.63750923,1321.3,1321.2,23.00209297]
[1673298083735,6.44771534,1321.3,1321.2,23.00409297]
[1673298083939,3.73350923,1321.3,1321.2,23.00409297]
[1673298084161,14.01601534,1321.3,1321.2,23.00409297]
[1673298084366,6.54371534,1321.3,1321.2,23.00409297]
[1673298084803,4.28520611,1321.3,1321.2,17.00409297]
[1673298084979,4.18920611,1321.3,1321.2,17.00409297]
[1673298086284,6.4479304,1321.3,1321.2,17.00409297]
[1673298086458,6.5439304,1321.3,1321.2,17.00409297]
[1673298087415,14.1122304,1321.3,1321.2,17.00409297]
[1673298087618,4.28520611,1321.3,1321.2,17.00409297]
[1673298087816,4.18920611,1321.3,1321.2,17.00409297]
[1673298088026,4.18920611,1321.3,1321.2,16.00409297]
[1673298088452,4.18920611,1321.3,1321.2,13.00409297]
[1673298088867,6.44797345,1321.3,1321.2,13.00409297]
[1673298089129,6.54397345,1321.3,1321.2,13.00409297]
[1673298090077,4.28520611,1321.3,1321.2,13.00409297]
[1673298090234,6.44787306,1321.3,1321.2,13.00409297]
[1673298090445,4.28520611,1321.3,1321.2,13.00409297]
[1673298090650,4.18920611,1321.3,1321.2,13.00409297]
[1673298090911,4.18920611,1321.3,1321.2,20.57296297]
[1673298091290,6.44780961,1321.3,1321.2,20.57296297]
[1673298091535,6.54380961,1321.3,1321.2,20.57296297]
[1673298091920,4.28520611,1321.3,1321.2,20.57296297]
[1673298092138,4.18920611,1321.3,1321.2,20.57296297]
[1673298092770,4.18920611,1321.3,1321.2,13.00409297]
[1673298092771,4.20225684,1321.3,1321.2,13.00409297]
[1673298092977,11.77055684,1321.3,1321.2,13.00409297]
[1673298093238,11.86655684,1321.3,1321.2,13.00409297]
[1673298093393,19.66485684,1321.3,1321.2,13.00409297]
[1673298093813,27.23315684,1321.3,1321.2,13.00409297]
[1673298094756,19.66485684,1321.3,1321.2,13.00409297]
[1673298094999,24.4099,1321.3,1321.2,13.00409297]
[1673298096482,37.0996895,1321.3,1321.2,13.00409297]
[1673298096711,3.71609798,1321.1,1321.0,0.0832555]
[1673298096857,39.57365228,1321.1,1321.0,0.0832555]
[1673298097061,39.89965228,1321.1,1321.0,0.0832555]
[1673298097527,48.64142624,1321.1,1321.0,0.0832555]
[1673298097738,51.1397851,1321.1,1321.0,0.0832555]
[1673298097909,51.1397851,1321.1,1321.0,5.5e-06]
[1673298098118,51.1397851,1321.1,1320.8,0.0832555]
[1673298098363,27.72001318,1320.9,1320.8,0.0832555]
[1673298098577,31.61367382,1320.9,1320.8,0.0832555]
[1673298098801,39.60684111,1320.9,1320.8,0.0832555]
[1673298098971,37.35159793,1320.9,1320.8,0.0832555]
[1673298099646,36.78447435,1320.9,1320.8,0.0832555]
[1673298099814,35.227515,1320.9,1320.8,0.0832555]
[1673298100171,40.17162832,1320.9,1320.8,0.0832555]
[1673298100555,37.91969793,1320.9,1320.8,0.0832555]
[1673298101027,37.91969793,1320.9,1320.7,1e-06]
[1673298101028,3.0,1320.8,1320.7,1e-06]
[1673298101322,32.48114064,1320.8,1320.7,1e-06]
[1673298101647,35.38862375,1320.8,1320.7,1e-06]
[1673298101814,35.95672375,1320.8,1320.7,1e-06]
[1673298102097,39.77625038,1320.8,1320.7,1e-06]
[1673298102871,42.02784045,1320.8,1320.7,1e-06]
[1673298103490,3.0,1320.7,1320.4,0.15447841]
[1673298103665,2.758,1320.5,1320.4,0.09447841]
[1673298103875,33.27952,1320.5,1320.4,0.09447841]
[1673298104083,33.37552,1320.5,1320.4,0.09447841]
[1673298105072,37.17318064,1320.5,1320.4,0.09447841]
[1673298105228,34.49877272,1320.5,1320.4,0.09447841]
[1673298105436,33.37552,1320.5,1320.4,0.09447841]
[1673298105696,31.99652,1320.5,1320.4,0.09447841]
[1673298106090,31.99652,1320.5,1320.1,3.16661637]
[1673298106282,0.23,1320.4,1320.2,0.006]
[1673298106492,22.72209,1320.3,1320.1,23.11261637]
[1673298106842,22.81809,1320.3,1320.1,3.11261637]
[1673298107055,22.81809,1320.3,1320.1,3.10661637]
[1673298107907,22.81809,1320.3,1320.1,0.10661637]
[1673298108112,22.81809,1320.3,1320.1,3.10661637]
[1673298109667,1.379,1320.2,1320.1,3.10661637]
[1673298110009,24.1028,1320.2,1320.1,3.10661637]
[1673298110167,24.1988,1320.2,1320.1,0.10661637]
[1673298111339,33.74515032,1320.2,1320.1,0.10661637]
[1673298111576,33.16886064,1320.2,1320.1,0.10661637]
[1673298111801,32.60046064,1320.2,1320.1,0.10661637]
[1673298119582,32.60046064,1320.2,1320.0,28.43925078]
[1673298119883,30.97720064,1320.1,1320.0,28.43925078]
[1673298120122,31.07320064,1320.1,1320.0,28.43925078]
[1673298121313,31.07320064,1320.1,1320.0,21.11410078]
[1673298121533,3.0,1320.0,1319.9,0.06]
[1673298121688,5.985,1320.0,1319.7,0.7255458]
[1673298121893,1.374,1319.8,1319.7,0.7255458]
[1673298122099,24.1047,1319.8,1319.7,0.7255458]
[1673298122352,24.2007,1319.8,1319.7,0.7255458]
[1673298123698,15.2498,1319.8,1319.7,0.7255458]
[1673298124837,22.8267,1319.8,1319.7,0.7255458]
[1673298125079,15.2498,1319.8,1319.7,0.7255458]
[1673298125704,22.8267,1319.8,1319.7,0.7255458]
[1673298134282,30.4036,1319.8,1319.7,0.7255458]
[1673298134442,23.0567,1319.8,1319.7,0.7255458]
[1673298135032,34.72060828,1319.8,1319.7,0.7255458]
[1673298135173,34.72060828,1319.8,1319.5,0.17738122]
[1673298135174,36.66810828,1319.8,1319.5,0.11138122]
[1673298135387,12.12164812,1319.7,1319.5,0.11138122]
[1673298135626,26.96215,1319.6,1319.5,0.11138122]
[1673298135818,25.91315,1319.6,1319.5,0.11138122]
[1673298137079,18.3351,1319.6,1319.5,0.11138122]
[1673298137309,16.9591,1319.6,1319.5,0.11138122]
[1673298137723,24.53715,1319.6,1319.5,0.11138122]
[1673298138499,27.53715,1319.6,1319.5,0.11138122]
[1673298138969,28.91515,1319.6,1319.5,0.11138122]
[1673298139168,25.91515,1319.6,1319.5,0.11138122]
[1673298139856,18.3371,1319.6,1319.5,0.11138122]
[1673298140007,24.53715,1319.6,1319.5,0.11138122]
[1673298141320,28.33481064,1319.6,1319.5,0.11138122]
[1673298141511,29.71381064,1319.6,1319.5,0.11138122]
[1673298141852,37.55479812,1319.6,1319.5,0.11138122]
[1673298142013,36.74439812,1319.6,1319.5,0.11138122]
[1673298144976,31.65041064,1319.6,1319.5,0.11138122]
[1673298145171,24.07236064,1319.6,1319.5,0.11138122]
[1673298145378,0.6646,1319.6,1319.5,0.11138122]
[1673298145593,0.096,1319.7,1319.5,0.11138122]
[1673298145807,31.31547,1319.8,1319.5,0.11138122]
[1673298146679,40.01598272,1319.8,1319.5,0.11138122]
[1673298146848,40.01598272,1319.8,1319.5,7.68997122]
[1673298146849,21.02225272,1319.8,1319.5,7.68997122]
[1673298147061,1.78775272,1319.8,1319.5,9.23462246]
[1673298147272,18.64498908,1319.9,1319.5,18.19224246]
[1673298147273,1.78775272,1319.9,1319.5,18.19224246]
[1673298147502,41.3886818,1320.0,1319.5,23.2530963]
[1673298147831,33.8125318,1320.0,1319.5,25.77086246]
[1673298148200,31.55925272,1320.0,1319.6,1.379]
[1673298148409,1.21925272,1320.0,1319.7,22.73213]
[1673298148651,1.69165272,1320.0,1319.7,22.73813]
[1673298148874,1.12325272,1320.0,1319.7,22.73813]
[1673298149263,1.12325272,1320.1,1319.7,24.11713]
[1673298149516,1.12325272,1320.1,1319.7,29.75477243]
[1673298149681,1.12325272,1320.1,1319.7,37.73792794]
[1673298149880,1.12325272,1320.1,1319.9,7.57633]
[1673298150098,1.12325272,1320.1,1319.9,7.58233]
[1673298150443,2.8081318,1320.1,1319.9,7.58233]
[1673298150647,2.8081318,1320.1,1319.9,6.88561682]
[1673298151193,1.12325272,1320.0,1319.9,0.006]
[1673298151404,1.12325272,1320.0,1319.7,15.16043]
[1673298152034,1.12325272,1320.0,1319.7,7.58319]
[1673298152224,2.8081318,1320.0,1319.7,7.58319]
[1673298152412,17.9597118,1320.0,1319.7,1.69639287]
[1673298152646,10.4798818,1320.0,1319.7,3.0]
[1673298153052,10.4798818,1320.0,1319.7,10.57745]
[1673298153286,18.0557418,1320.0,1319.7,3.006]
[1673298153468,18.0557418,1320.0,1319.7,3.0]
[1673298153469,25.6316018,1320.0,1319.7,3.0]
[1673298153812,10.4798818,1320.0,1319.7,3.0]
[1673298154027,10.4798818,1320.0,1319.7,10.57738]
[1673298154245,1.12325272,1319.9,1319.7,10.58338]
[1673298154607,1.12325272,1319.9,1319.7,18.16085]
[1673298155527,1.12325272,1319.9,1319.7,3.006]
[1673298155684,1.12325272,1319.9,1319.7,3.0]
[1673298155904,1.12325272,1319.9,1319.7,25.73211]
[1673298156109,1.12325272,1319.9,1319.7,25.73811]
[1673298156362,1.12325272,1319.9,1319.7,18.16064]
[1673298157177,1.12325272,1319.9,1319.7,10.58317]
[1673298157628,1.12325272,1319.9,1319.7,18.16064]
[1673298158133,1.12325272,1319.9,1319.7,10.58317]
[1673298158732,1.12325272,1319.9,1319.7,21.16064]
[1673298158990,10.3839318,1320.0,1319.7,18.16064]
[1673298159181,10.4799318,1320.0,1319.7,18.16064]
[1673298159391,1.12325272,1319.9,1319.7,18.16064]
[1673298161889,1.12325272,1319.9,1319.7,10.58317]
[1673298162276,2.8081318,1319.9,1319.7,3.006]
[1673298162448,1.12325272,1319.8,1319.7,3.0]
[1673298162845,1.12325272,1319.8,1319.6,7.64382]
[1673298163055,1.12325272,1319.8,1319.6,15.16187]
[1673298163298,2.8081318,1319.9,1319.6,22.73992]
[1673298163508,10.3845218,1319.9,1319.6,15.16187]
[1673298163723,2.9041318,1319.9,1319.6,22.73992]
[1673298164035,2.8081318,1319.9,1319.6,15.16187]
[1673298164248,1.12325272,1319.8,1319.6,15.16187]
[1673298164458,1.12325272,1319.8,1319.6,7.58382]
[1673298164636,1.12325272,1319.8,1319.6,15.16187]
[1673298164831,1.12325272,1319.8,1319.6,22.73992]
[1673298165816,2.8081318,1319.9,1319.6,22.73992]
[1673298166046,1.12325272,1319.8,1319.6,22.73992]
[1673298166246,2.8081318,1319.9,1319.6,22.73992]
[1673298166562,1.12325272,1319.8,1319.6,22.73992]
[1673298167656,1.21925272,1320.0,1319.7,7.368]
[1673298167934,1.12325272,1320.0,1319.8,24.1097]
[1673298168081,2.8081318,1320.1,1319.8,24.1157]
[1673298168285,2.8081318,1320.1,1319.9,3.0]
[1673298168286,1.12325272,1320.1,1319.9,3.0]
[1673298168604,1.12325272,1320.1,1320.0,22.72725]
[1673298168816,1.12325272,1320.1,1320.0,22.73325]
[1673298170196,2.8081318,1320.1,1320.0,22.73325]
[1673298170392,1.12325272,1320.1,1320.0,22.73325]
[1673298170602,1.12325272,1320.1,1320.0,15.1575]
[1673298171600,1.12325272,1320.1,1320.0,22.73325]
[1673298171754,1.12325272,1320.1,1320.0,15.1575]
[1673298171964,1.12325272,1320.1,1320.0,22.92205]
[1673298172404,1.12325272,1320.1,1320.0,22.98905]
[1673298172855,2.8081318,1320.2,1320.0,22.98905]
[1673298173227,1.12325272,1320.2,1320.0,22.98905]
[1673298173647,1.12325272,1320.2,1320.0,15.4133]
[1673298175678,2.8081318,1320.2,1320.0,15.4133]
[1673298176815,1.12325272,1320.2,1320.0,15.4133]
[1673298177011,1.12325272,1320.2,1320.0,22.98905]
[1673298177442,1.12325272,1320.2,1320.0,15.4133]
[1673298177606,2.8081318,1320.2,1320.0,15.4133]
[1673298177815,2.8081318,1320.2,1320.0,22.98905]
[1673298178019,2.8081318,1320.2,1320.0,15.4133]
[1673298178213,2.8081318,1320.2,1320.0,7.83755]
[1673298178425,1.12325272,1320.1,1320.0,7.83755]
[1673298178852,1.12325272,1320.1,1320.0,0.2618]
[1673298179043,1.12325272,1320.1,1320.0,15.4073]
[1673298179256,1.12325272,1320.1,1320.0,22.98905]
[1673298180183,2.8081318,1320.2,1320.0,33.764583]
[1673298180396,3.00038016,1320.3,1320.0,33.764583]
[1673298180615,2.90438016,1320.3,1320.1,1.379]
[1673298180926,2.90438016,1320.3,1320.2,22.7238]
[1673298180927,2.90472163,1320.3,1320.2,22.7238]
[1673298181202,2.90472163,1320.3,1320.2,24.1068]
[1673298181349,0.09624836,1320.3,1320.2,31.656949]
[1673298181545,0.09624836,1320.3,1320.2,31.6543431]
[1673298186294,0.09624836,1320.3,1320.2,39.2289431]
[1673298187368,0.09624836,1320.3,1320.2,64.2289431]
[1673298187992,0.09624836,1320.3,1320.2,67.2289431]
[1673298188321,0.09624836,1320.3,1320.2,75.2289431]
[1673298188480,0.09624836,1320.3,1320.2,73.8519431]
[1673298188690,0.09624836,1320.3,1320.2,66.8519431]
[1673298189640,0.09624836,1320.3,1320.2,69.8519431]
[1673298194265,0.09624836,1320.3,1320.2,70.0407431]
[1673298195364,0.09624836,1320.3,1320.2,70.1077431]
[1673298195940,0.09624836,1320.3,1320.2,79.77567119]
[1673298196153,1.30719383,1320.6,1320.3,3.0]
[1673298196154,0.08759964,1320.6,1320.3,3.0]
[1673298196407,0.08759964,1320.6,1320.4,30.29384]
[1673298196628,0.08759964,1320.6,1320.4,30.29984]
[1673298197356,0.08759964,1320.6,1320.4,22.72638]
[1673298198102,0.08759964,1320.6,1320.4,26.52404064]
[1673298198622,0.08759964,1320.6,1320.4,26.54104958]
[1673298198800,0.08759964,1320.6,1320.4,23.94932525]
[1673298199367,0.08759964,1320.6,1320.4,31.52278525]
[1673298199553,0.08759964,1320.6,1320.4,32.89078525]
[1673298199730,0.08759964,1320.6,1320.4,40.46424525]
[1673298200184,0.08759964,1320.6,1320.4,32.89078525]
[1673298200572,0.08759964,1320.6,1320.4,17.74386525]
[1673298200784,0.08759964,1320.6,1320.4,25.31732525]
[1673298201449,0.08759964,1320.6,1320.4,32.89078525]
[1673298201951,0.08759964,1320.6,1320.4,40.46424525]
[1673298202399,0.08759964,1320.6,1320.5,3.0]
[1673298202635,0.08759964,1320.6,1320.5,17.95961917]
[1673298202803,0.08759964,1320.6,1320.5,33.11137917]
[1673298203615,22.80452964,1320.6,1320.5,3.006]
[1673298203976,22.80452964,1320.6,1320.5,3.0]
[1673298203977,15.32821964,1320.6,1320.5,3.0]
[1673298204160,7.75590964,1320.6,1320.5,3.0]
[1673298204568,15.32821964,1320.6,1320.5,3.0]
[1673298204781,7.75590964,1320.6,1320.5,3.0]
[1673298205662,15.32821964,1320.6,1320.5,3.0]
[1673298206275,8.87950383,1320.6,1320.5,3.0]
[1673298206481,7.75590964,1320.6,1320.5,3.0]
[1673298207691,0.18359964,1320.6,1320.5,3.0]
[1673298207903,0.08759964,1320.6,1320.5,3.0]
[1673298208115,15.23221964,1320.6,1320.5,3.0]
[1673298208288,24.02412383,1320.6,1320.5,3.0]
[1673298208496,15.32821964,1320.6,1320.5,3.0]
[1673298208707,7.75590964,1320.6,1320.5,3.0]
[1673298208922,16.45181383,1320.6,1320.5,3.0]
[1673298209182,15.32821964,1320.6,1320.5,3.0]
[1673298209391,16.45181383,1320.6,1320.5,3.0]
[1673298209696,1.30719383,1320.6,1320.5,3.0]
[1673298209920,1.21119383,1320.6,1320.5,3.0]
[1673298210138,1.21119383,1320.6,1320.5,10.57288]
[1673298210281,1.21119383,1320.6,1320.5,3.006]
[1673298210496,1.21119383,1320.6,1320.5,3.0]
[1673298211262,0.08759964,1320.6,1320.5,3.0]
[1673298211859,7.65990964,1320.6,1320.5,3.0]
[1673298212181,8.87950383,1320.6,1320.5,3.0]
[1673298212410,1.30719383,1320.6,1320.5,3.0]
[1673298212748,1.21119383,1320.6,1320.5,3.0]
[1673298213119,0.08759964,1320.6,1320.5,3.0]
[1673298213550,0.08759964,1320.6,1320.5,3.1888]
[1673298214217,0.08759964,1320.6,1320.5,3.2558]
[1673298216278,1.21119383,1320.6,1320.5,3.2558]
[1673298216495,1.21319383,1320.6,1320.5,3.2558]
[1673298216700,1.21119383,1320.6,1320.5,3.2558]
[1673298220269,2.89607291,1320.6,1320.5,3.2558]
[1673298220475,10.46993286,1320.6,1320.5,3.2558]
[1673298220845,10.56593286,1320.6,1320.5,3.2558]
[1673298221680,25.14703508,1320.6,1320.5,3.2558]
[1673298221899,25.14703508,1320.6,1320.5,0.2558]
[1673298221900,29.34108905,1320.6,1320.5,0.2558]
[1673298222055,36.91339905,1320.6,1320.5,0.2558]
[1673298222265,27.09458361,1320.6,1320.5,0.2558]
[1673298223745,34.66689361,1320.6,1320.5,0.2558]
[1673298223991,27.09458361,1320.6,1320.5,0.2558]
[1673298224368,26.83990803,1320.6,1320.5,0.2558]
[1673298224693,27.97065341,1320.6,1320.5,0.2558]
[1673298225757,26.8398371,1320.6,1320.5,0.2558]
[1673298226528,25.15159944,1320.6,1320.5,0.2558]
[1673298226693,27.97065341,1320.6,1320.5,0.2558]
[1673298227098,25.71958361,1320.6,1320.5,0.2558]
[1673298227722,27.97074669,1320.6,1320.5,0.2558]
[1673298228303,20.39884273,1320.6,1320.5,0.2558]
[1673298228616,10.00747876,1320.6,1320.5,0.2558]
[1673298229298,2.43516876,1320.6,1320.5,0.2558]
[1673298229512,2.33916876,1320.6,1320.5,0.2558]
[1673298230504,5.15822273,1320.6,1320.5,0.2558]
[1673298230668,12.82653273,1320.6,1320.5,0.2558]
[1673298231618,5.25422273,1320.6,1320.5,0.2558]
[1673298231818,12.82653273,1320.6,1320.5,0.2558]
[1673298232932,5.25422273,1320.6,1320.5,0.2558]
[1673298233240,5.25422273,1320.6,1320.5,22.97444]
[1673298233401,2.43516876,1320.6,1320.5,22.98044]
[1673298233769,2.43516876,1320.6,1320.5,0.2618]
[1673298233770,2.33916876,1320.6,1320.5,0.2618]
[1673298233958,2.33916876,1320.6,1320.5,0.2558]
[1673298234162,5.15822273,1320.6,1320.5,0.2558]
[1673298234341,5.25422273,1320.6,1320.5,0.2558]
[1673298235650,24.27352964,1320.6,1320.5,0.2558]
[1673298235860,24.27352964,1320.6,1320.5,0.25221462]
[1673298235861,27.6596828,1320.6,1320.5,0.25221462]
[1673298236377,35.2319928,1320.6,1320.5,0.25221462]
[1673298236920,31.84583964,1320.6,1320.5,0.25221462]
[1673298237654,35.2319928,1320.6,1320.5,0.25221462]
[1673298239234,35.4619928,1320.6,1320.5,0.25221462]
[1673298242964,27.31936209,1320.6,1320.5,0.25221462]
[1673298243178,24.50352964,1320.6,1320.5,0.25221462]
[1673298243435,27.31898574,1320.6,1320.5,0.25221462]
[1673298243648,24.50352964,1320.6,1320.5,0.25221462]
[1673298243811,24.10352964,1320.6,1320.5,0.25221462]
[1673298244017,24.19752964,1320.6,1320.5,0.25221462]
[1673298244230,27.01474721,1320.6,1320.5,0.25221462]
[1673298245014,24.19952964,1320.6,1320.5,0.25221462]
[1673298245927,27.5856828,1320.6,1320.5,0.25221462]
[1673298246381,24.55252964,1320.6,1320.5,0.25221462]
[1673298247070,27.9386828,1320.6,1320.5,0.25221462]
[1673298252318,5.43815316,1320.6,1320.5,0.25221462]
[1673298252536,12.62431,1320.6,1320.5,0.25221462]
[1673298252769,20.19662,1320.6,1320.5,0.25221462]
[1673298253052,31.15508316,1320.6,1320.5,0.25221462]
[1673298253601,19.96662,1320.6,1320.5,0.25221462]
[1673298253807,23.35277316,1320.6,1320.5,0.25221462]
[1673298254238,30.92508316,1320.6,1320.5,0.25221462]
[1673298257212,5.20815316,1320.6,1320.5,0.25221462]
[1673298257521,15.78046316,1320.6,1320.5,0.20221462]
[1673298257744,20.35277316,1320.6,1320.5,0.20221462]
[1673298258123,27.92508316,1320.6,1320.5,0.20221462]
[1673298258534,28.49328316,1320.6,1320.5,0.20221462]
[1673298259961,30.21328316,1320.6,1320.5,0.20221462]
[1673298261419,29.64508316,1320.6,1320.5,0.20221462]
[1673298262257,14.50046316,1320.6,1320.5,0.20221462]
[1673298262609,29.64508316,1320.6,1320.5,0.20221462]
[1673298265138,22.07277316,1320.6,1320.5,0.20221462]
[1673298265455,14.50046316,1320.6,1320.5,0.20221462]
[1673298266082,22.07277316,1320.6,1320.5,0.20221462]
[1673298266217,29.64508316,1320.6,1320.5,0.20221462]
[1673298266866,22.07277316,1320.6,1320.5,0.20221462]
[1673298268426,5.20215316,1320.6,1320.5,0.20221462]
[1673298268739,5.16904512,1320.6,1320.5,7.77509462]
[1673298268948,2.35072902,1320.6,1320.5,0.20821462]
[1673298269158,2.25472902,1320.6,1320.5,0.20221462]
[1673298269370,12.64535512,1320.6,1320.5,0.20221462]
[1673298269578,12.74135512,1320.6,1320.5,0.20221462]
[1673298271696,5.16904512,1320.6,1320.5,0.20221462]
[1673298272468,12.74135512,1320.6,1320.5,0.20221462]
[1673298274025,12.73897216,1320.6,1320.5,0.20221462]
[1673298275284,20.31128216,1320.6,1320.5,0.20221462]
[1673298275670,12.73897216,1320.6,1320.5,0.20221462]
[1673298277464,26.61059064,1320.6,1320.5,0.20221462]
[1673298277706,46.30758466,1320.6,1320.5,0.20221462]
[1673298278084,46.82682583,1320.6,1320.5,0.13979906]
[1673298278299,3.0,1320.5,1320.2,8.4177]
[1673298278508,27.26526477,1320.3,1320.2,0.006]
[1673298278715,27.36126477,1320.3,1320.0,15.2104]
[1673298278926,2.81627141,1320.2,1320.0,15.2104]
[1673298279140,17.96595141,1320.2,1320.0,15.2104]
[1673298279426,10.48711141,1320.2,1320.0,0.006]
[1673298279593,1.12650856,1320.1,1320.0,3.0]
[1673298279919,18.06210141,1320.2,1320.0,3.0]
[1673298280135,10.48711141,1320.2,1320.0,3.0]
[1673298281189,18.06227141,1320.2,1320.0,3.0]
[1673298282290,25.63743141,1320.2,1320.0,3.0]
[1673298282500,23.94766856,1320.2,1320.0,3.0]
[1673298283600,25.63743141,1320.2,1320.0,3.0]
[1673298283971,23.94766856,1320.2,1320.0,3.0]
[1673298284185,25.63743141,1320.2,1320.0,3.0]
[1673298284628,23.94766856,1320.2,1320.0,3.0]
[1673298286495,16.37250856,1320.2,1320.0,3.0]
[1673298286807,1.22250856,1320.2,1320.0,3.0]
[1673298287053,10.39107141,1320.2,1320.0,3.0]
[1673298287264,23.94670856,1320.2,1320.0,3.0]
[1673298287482,1.22250856,1320.2,1320.0,18.15132]
[1673298287645,1.12650856,1320.2,1320.0,18.15732]
[1673298288070,1.12650856,1320.2,1320.0,25.73307]
[1673298288280,1.12650856,1320.2,1320.0,30.067847]
[1673298288695,1.12650856,1320.2,1320.0,14.916347]
[1673298289329,2.81627141,1320.2,1320.0,3.006]
[1673298289582,25.54025141,1320.2,1320.0,3.0]
[1673298289799,23.85204856,1320.1,1320.0,3.0]
[1673298289964,23.94804856,1320.1,1320.0,3.0]
[1673298290175,22.82154,1320.1,1320.0,3.0]
[1673298291169,23.94804856,1320.1,1320.0,3.0]
[1673298291322,31.52322856,1320.1,1320.0,3.0]
[1673298291534,23.94804856,1320.1,1320.0,3.0]
[1673298292196,23.94804856,1320.1,1319.9,0.066]
[1673298292390,23.94804856,1320.1,1319.8,16.33555864]
[1673298292391,6.25827141,1320.0,1319.8,0.11415864]
[1673298292586,15.15266,1319.9,1319.8,0.10815864]
[1673298292829,15.24866,1319.9,1319.8,0.10815864]
[1673298293473,24.55099,1319.9,1319.8,0.10815864]
[1673298293653,9.39833,1319.9,1319.8,0.10815864]
[1673298293862,1.573,1319.9,1319.8,0.10815864]
[1673298294068,9.05333,1319.9,1319.8,0.10815864]
[1673298294278,9.14933,1319.9,1319.8,0.10815864]
[1673298294913,16.72566,1319.9,1319.8,0.10815864]
[1673298296383,9.14933,1319.9,1319.8,0.10815864]
[1673298297258,1.573,1319.9,1319.8,0.10815864]
[1673298297587,1.477,1319.9,1319.8,0.10815864]
[1673298297732,9.05333,1319.9,1319.8,0.10815864]
[1673298297946,9.14933,1319.9,1319.8,0.10815864]
[1673298301772,16.72566,1319.9,1319.8,0.10815864]
[1673298301952,16.72566,1319.9,1319.8,0.10605653]
[1673298302391,9.14933,1319.9,1319.8,0.10605653]
[1673298302598,0.096,1319.9,1319.8,22.83675653]
[1673298302815,31.29130856,1320.1,1319.8,26.64189412]
[1673298302816,31.38730856,1320.1,1319.8,26.64189412]
[1673298302990,31.38730856,1320.1,1319.8,22.84275653]
[1673298303198,48.22801141,1320.1,1319.8,0.11205653]
[1673298303413,35.74795856,1320.1,1319.8,0.10605653]
[1673298303620,37.43772141,1320.1,1319.8,0.10605653]
[1673298304459,35.74795856,1320.1,1319.8,0.10605653]
[1673298304665,35.74795856,1320.1,1319.8,7.68281653]
[1673298304880,35.74795856,1320.1,1319.8,7.68881653]
[1673298305728,35.74795856,1320.1,1319.8,7.68889653]
[1673298305988,37.43772141,1320.1,1319.8,7.68889653]
[1673298306175,35.74795856,1320.1,1319.8,7.68889653]
[1673298307552,28.17234856,1320.1,1319.8,15.26579653]
[1673298307771,20.59673856,1320.1,1319.8,15.26579653]
[1673298307984,35.74709856,1320.1,1319.8,7.68889653]
[1673298308139,35.74709856,1320.1,1319.8,0.11205653]
[1673298308349,35.74709856,1320.1,1319.8,0.10605653]
[1673298308554,1.477,1319.9,1319.8,0.10605653]
[1673298308814,24.20599,1319.9,1319.8,0.10605653]
[1673298308976,9.14933,1319.9,1319.8,0.10605653]
[1673298309430,16.72566,1319.9,1319.8,0.10605653]
[1673298310590,9.14933,1319.9,1319.8,0.10605653]
[1673298311228,16.72566,1319.9,1319.8,0.10605653]
[1673298311437,24.30199,1319.9,1319.8,0.10605653]
[1673298312765,16.72566,1319.9,1319.8,0.10605653]
[1673298313491,0.096,1319.9,1319.8,0.10605653]
[1673298313644,0.146,1320.0,1319.8,22.83675653]
[1673298313856,0.05,1320.0,1319.8,7.68895653]
[1673298314069,0.05,1320.0,1319.8,15.26585653]
[1673298314469,0.05,1320.0,1319.8,7.68895653]
[1673298314470,1.17650856,1320.0,1319.8,7.68895653]
[1673298314682,0.05,1320.0,1319.8,15.26585653]
[1673298314874,26.58309141,1320.1,1319.8,15.26585653]
[1673298314875,26.01460141,1320.1,1319.8,18.61388218]
[1673298315084,18.43917141,1320.1,1319.8,15.26585653]
[1673298316229,18.43898141,1320.1,1319.8,15.26585653]
[1673298316437,1.12650856,1320.0,1319.8,22.84275653]
[1673298317178,1.12650856,1320.0,1319.8,15.26585653]
[1673298318343,16.27810856,1320.0,1319.8,0.11205653]
[1673298318542,23.94995856,1320.0,1319.8,0.10605653]
[1673298320652,25.63972141,1320.0,1319.8,0.10605653]
[1673298321587,18.06387141,1320.0,1319.8,0.10605653]
[1673298322057,1.12650856,1319.9,1319.8,0.10605653]
[1673298323638,8.70283856,1319.9,1319.8,0.10605653]
[1673298323806,8.79883856,1319.9,1319.8,0.10605653]
[1673298324688,1.22250856,1319.9,1319.8,0.10605653]
[1673298324914,1.12650856,1319.9,1319.8,0.10605653]
[1673298325435,25.63996141,1320.0,1319.8,0.10605653]
[1673298326244,18.06387141,1320.0,1319.8,0.10605653]
[1673298327696,10.48802141,1320.0,1319.8,7.68292653]
[1673298327907,8.79825856,1320.0,1319.8,7.68892653]
[1673298328117,10.48802141,1320.0,1319.8,7.68892653]